Cogmind - Beta 11.1 @@@ ROGUE MODE // 2022.07.13 @ 20:27:05 Player: Sigil Result: Destroyed by C-35 Carver with Carbide Saw Performance ------------- Evolutions (6) 3000 Regions Visited (9) 1800 Robots Destroyed (17) 85 Value Destroyed (313) 313 Prototype IDs (4) 80 Alien Tech Used (0) 0 Bonus (0) 0 TOTAL SCORE: 5278 Bonus ------- None Cogmind --------- Core Integrity 0/1150 Matter 264/300 Energy 31/100 System Corruption 7% Temperature Cool (0) Movement Core (100) Ox1 Location -4/Factory Parts ------- > --- POWER (2) -------- (None) > --- PROPULSION (6) --- (None) > --- UTILITY (9) ------ Small Storage Unit > --- WEAPON (2) ------- (None) > --- INVENTORY (8) ---- Improved Gravmag System Improved Cooling System Large Battery (200) Advanced Weight Redist. System Long-range Sensor Array Advanced ECM Suite Authchip [Armor] Peak State ------------ > --- POWER ------------ Light Nuclear Core Light Antimatter Reactor > --- PROPULSION ------- Improved Airjet Improved Gravmag System Improved Gravmag System Gravmag Array Improved Gyrokinetic Inverter > --- UTILITY ---------- Small Storage Unit Advanced Visual Processing Unit Long-range Sensor Array Advanced Signal Interpreter Improved Melee Analysis Suite Improved Transmission Jammer Advanced Reaction Control System Improved Utility Shielding Improved Shield Generator > --- WEAPON ----------- Greatsword > --- INVENTORY -------- Cooled Airjet Improved Cooling System Large Battery Advanced Weight Redist. System Long-range Sensor Array Advanced ECM Suite Authchip [Armor] Missile Launcher [Rating: 93] Favorites ----------- Power Light Nuclear Core Power Core Light Nuclear Core Reactor Light Antimatter Reactor Propulsion Cooled Airjet Treads Light Treads Leg Improved Titanium Leg Hover Unit Cooled Airjet Flight Unit Flight Unit Utility Improved Melee Analysis Suite Device Long-range Sensor Array Storage Small Storage Unit Processor Improved Melee Analysis Suite Hackware Hacking Suite Protection Improved Utility Shielding Weapon Light Assault Rifle Ballistic Gun Light Assault Rifle Launcher Missile Launcher Impact Weapon Powered Hammer Slashing Weapon Greatsword Build | -11 -10 -10 -9 -9 -8 -7 -6 -5 -4 ------- Run | Scr Mat Min Mat Sto Mat Fac Fac Fac Fac Slots Evolved 12 | . . . 2 . 2 2 2 2 2 Power 1 | . . . . . . . . 1 . Propulsion 4 | . . . 2 . . . 2 . . Utility 7 | . . . . . 2 2 . 1 2 Weapon . | . . . . . . . . . . Parts Attached 63 | 5 . . . 6 13 17 6 1 15 Power 5 | . . . . . 1 1 . . 3 Engine . | . . . . . . . . . . Core 3 | . . . . . 1 1 . . 1 Reactor 2 | . . . . . . . . . 2 Propulsion 33 | 2 . . . 5 6 10 4 . 6 Treads 4 | 2 . . . 2 . . . . . Leg 4 | . . . . . . 4 . . . Wheel . | . . . . . . . . . . Hover 16 | . . . . . 4 3 3 . 6 Flight 9 | . . . . 3 2 3 1 . . Utility 18 | 1 . . . 1 5 4 1 1 5 Device 6 | . . . . . . 2 1 1 2 Storage 2 | 1 . . . . 1 . . . . Processor 6 | . . . . . 3 1 . . 2 Hackware 2 | . . . . . 1 1 . . . Protection 2 | . . . . 1 . . . . 1 Artifact . | . . . . . . . . . . Weapon 7 | 2 . . . . 1 2 1 . 1 Energy Gun . | . . . . . . . . . . Energy Cannon . | . . . . . . . . . . Ballistic Gun 2 | 2 . . . . . . . . . Ballistic Cannon . | . . . . . . . . . . Launcher 2 | . . . . . . 1 . . 1 Special Weapon . | . . . . . . . . . . Impact Weapon 2 | . . . . . 1 1 . . . Slashing Weapon 1 | . . . . . . . 1 . . Piercing Weapon . | . . . . . . . . . . Special Melee Weapon . | . . . . . . . . . . Unidentified Prototypes 4 | . . . . . 1 2 1 . . Parts Lost 35 | . . . . 7 3 6 . . 19 Power 5 | . . . . . . 1 . . 4 Propulsion 17 | . . . . 5 2 4 . . 6 Utility 9 | . . . . . 1 1 . . 7 Weapon 4 | . . . . 2 . . . . 2 Highest Loss Streak 19 | . . . . 6 2 5 . . 19 To Critical Strikes . | . . . . . . . . . . Average Slot Usage (%) 73 | . 57 57 44 49 67 79 85 82 79 Core 4 | . . . . . 6 5 6 5 4 Reactor 1 | . . . . . . . . . 3 Treads 4 | . 28 28 22 16 . . . . . Hover 16 | . . . . . 18 13 24 29 24 Flight 4 | . . . . 13 7 5 7 . . Device 7 | . . . . . . 3 6 11 16 Storage 4 | . . . . . 1 7 6 5 5 Processor 15 | . . . . . 15 26 20 17 14 Hackware 3 | . . . . . 6 4 6 5 1 Protection 2 | . . . . 2 7 . . . 3 Ballistic Gun 4 | . 28 28 22 17 . . . . . Impact Weapon 2 | . . . . . 4 7 1 . . Slashing Weapon 2 | . . . . . . . 5 5 4 Naked Turns 3 | . . . . 3 . . . . . Heaviest Build 39 | 7 2 2 2 2 13 17 17 21 39 Greatest Support 65 | 40 3 3 3 20 36 40 57 57 65 Greatest Overweight (x) 2 | . . . . . . 1 . . 2 Average Overweight (x) . | . . . . . . . . . . Largest Inventory Capacity 8 | 8 5 5 5 5 8 8 8 8 8 Average Capacity 7 | 5 5 5 5 5 5 8 8 8 8 Most Carried 8 | 5 5 5 5 5 5 8 8 8 8 Average Carried 6 | 3 4 4 5 4 4 6 8 7 7 Final Capacity 8 | 8 5 5 5 5 8 8 8 8 8 Final Carried 8 | 5 5 5 5 4 4 8 8 8 7 Class Distribution -------------------- 43% | Mutant 33% | Scout 18% | Scavenger-Ninja 3% | Ninja Dominant Class ---------------- Mutant | -10/Materials Mutant | -10/Mines Mutant | -9/Materials Mutant | -9/Storage Mutant | -8/Materials Scout | -7/Factory Scout | -6/Factory Scout | -5/Factory Scavenger-Ninja | -4/Factory Resources | -11 -10 -10 -9 -9 -8 -7 -6 -5 -4 ----------- Run | Scr Mat Min Mat Sto Mat Fac Fac Fac Fac Matter Collected 744 | 240 . 22 . 48 . 80 . . 354 Remotely . | . . . . . . . . . . Salvage Created 460 | . . 41 . 133 . 106 . . 180 Parts 31 | . . 5 . 8 . 5 . . 13 Haulers Intercepted 1 | . . . . . . . . . 1 Recyclers Shooed 1 | . . 1 . . . . . . . Parts Field Recycled . | . . . . . . . . . . Retrieved Matter . | . . . . . . . . . . Parts Self-Destructed . | . . . . . . . . . . Prevented . | . . . . . . . . . . Kills | -11 -10 -10 -9 -9 -8 -7 -6 -5 -4 ------- Run | Scr Mat Min Mat Sto Mat Fac Fac Fac Fac Combat Hostiles Destroyed 12 | . . 3 . 3 . 4 . . 2 Melee 3 | . . . . . . 3 . . . Guns 6 | . . 3 . 3 . . . . . AOE 2 | . . . . . . . . . 2 Classes Destroyed 5 | . . 1 . 1 . 1 . . 2 Worker 1 | . . . . . . . . . 1 Hauler 1 | . . . . . . . . . 1 Recycler 1 | . . . . 1 . . . . . Watcher 2 | . . . . . . 1 . . 1 Swarmer 12 | . . 3 . 3 . 4 . . 2 Best Kill Streak 3 | . . 3 . 3 . 2 . . 2 Combat Bots Only 3 | . . 3 . 2 . 2 . . 2 Max Kills in Single Turn 1 | . . 1 . 1 . 1 . . 1 Gunslinging . | . . . . . . . . . . Exploded 1 | . . . . . . . . . 1 Melee 1 | . . . . . . 1 . . . Uniques/NPCs Destroyed . | . . . . . . . . . . Combat | -11 -10 -10 -9 -9 -8 -7 -6 -5 -4 -------- Run | Scr Mat Min Mat Sto Mat Fac Fac Fac Fac Damage Taken 5426 | . . 102 . 945 414 1060 . . 2905 Core 1790 | . . 28 . 204 105 295 . . 1158 Absorbed by Shields 48 | . . . . . . . . . 48 Redirected to Shielding 145 | . . . . 18 24 . . . 103 Core Remaining (%) 82 | 100 . 88 . 49 80 57 100 100 . Volleys Fired 23 | . . 6 . 15 . . . . 2 Largest 2 | . . 2 . 2 . . . . 1 Hottest 40 | . . 40 . 40 . . . . 36 Shots Fired 44 | . . 12 . 30 . . . . 2 Gun 42 | . . 12 . 30 . . . . . Cannon . | . . . . . . . . . . Launcher 2 | . . . . . . . . . 2 Special . | . . . . . . . . . . Kinetic 42 | . . 12 . 30 . . . . . Thermal . | . . . . . . . . . . Explosive 2 | . . . . . . . . . 2 Electromagnetic . | . . . . . . . . . . Robot Hit Streak 8 | . . 3 . 8 . . . . . Robot Miss Streak 2 | . . 2 . 2 . . . . 2 Penetration Max . | . . . . . . . . . . Secondary Targets 1 | . . . . 1 . . . . . Max Gunslinging Chain 1 | . . . . 1 . . . . . Shots Hit Robots 42 | . . 7 . 18 . 8 . . 9 Core Hits 22 | . . 4 . 7 . 1 . . 10 Critical Kills . | . . . . . . . . . . Critical Parts Destroyed 1 | . . . . . . 1 . . . Critical Strikes 1 | . . . . . . 1 . . . Smash 1 | . . . . . . 1 . . . Melee Attacks 35 | . . . . . . 14 . . 21 Impact 14 | . . . . . . 14 . . . Slashing 21 | . . . . . . . . . 21 Piercing . | . . . . . . . . . . Sneak Attacks 2 | . . . . . . . . . 2 Combat Hostiles . | . . . . . . . . . . Follow-up Attacks . | . . . . . . . . . . Damage Inflicted 1776 | . . 89 . 173 7 381 . . 1126 Guns 250 | . . 77 . 173 . . . . . Cannons . | . . . . . . . . . . Explosions 489 | . . . . . . . . . 489 Melee 1018 | . . . . . . 381 . . 637 Ramming 19 | . . 12 . . 7 . . . . Kinetic 250 | . . 77 . 173 . . . . . Thermal . | . . . . . . . . . . Explosive 489 | . . . . . . . . . 489 Electromagnetic . | . . . . . . . . . . Impact 381 | . . . . . . 381 . . . Slashing 637 | . . . . . . . . . 637 Piercing . | . . . . . . . . . . Highest Corruption 7 | . . . . 2 . . . . 7 Average Corruption 2 | . . . . 2 . . . . 3 Corruption Purged . | . . . . . . . . . . Corruption Blocked . | . . . . . . . . . . Effects 4 | . . . . 2 . . . . 2 Message Errors 1 | . . . . . . . . . 1 Energy Discharges 1 | . . . . 1 . . . . . Data Loss (minor) 2 | . . . . 1 . . . . 1 Overload Shots . | . . . . . . . . . . Overflow Damage 293 | . . . . . . 172 . . 121 Projectiles . | . . . . . . . . . . Explosions 34 | . . . . . . . . . 34 Melee 259 | . . . . . . 172 . . 87 Knockbacks 2 | . . . . . . 2 . . . Impact 2 | . . . . . . 2 . . . Kinetic . | . . . . . . . . . . Secondary . | . . . . . . . . . . Self-Inflicted Damage 8 | . . 5 . . 3 . . . . Shots . | . . . . . . . . . . Rammed 6 | . . 4 . . 1 1 . . . Targets Rammed 6 | . . 4 . . 1 1 . . . Kicked . | . . . . . . . . . . Crushed . | . . . . . . . . . . Highest Temperature 21 | . . . . 21 . . . . 4 Average Temperature 6 | . . . . 11 . . . . 3 Received Heat Transfer 441 | . . . . 198 144 9 . . 90 Siege Activations . | . . . . . . . . . . Robots Corrupted . | . . . . . . . . . . Combat Hostiles . | . . . . . . . . . . Parts Fried 6 | . . . . . . 6 . . . Impact Corruptions 6 | . . . . . . 6 . . . Robots Melted . | . . . . . . . . . . Combat Hostiles . | . . . . . . . . . . Parts Melted . | . . . . . . . . . . Heat Transferred . | . . . . . . . . . . Parts Sabotaged . | . . . . . . . . . . Parts Stolen . | . . . . . . . . . . Parts Stripped . | . . . . . . . . . . Power Chain Reactions . | . . . . . . . . . . Missiles Intercepted . | . . . . . . . . . . Alert | -11 -10 -10 -9 -9 -8 -7 -6 -5 -4 ------- Run | Scr Mat Min Mat Sto Mat Fac Fac Fac Fac Peak Influence 341 | . 30 96 37 290 246 341 73 89 141 Initial 122 | . . 11 37 15 122 111 68 35 43 Average 112 | . 6 83 37 158 191 197 70 65 67 Maximum Alert Level 1 | . . . . 1 1 1 . . . Low Security (%) 78 | 100 100 100 100 56 64 43 100 100 100 Level 1 21 | . . . . 43 35 56 . . . Level 2 . | . . . . . . . . . . Level 3 . | . . . . . . . . . . Level 4 . | . . . . . . . . . . Level 5 . | . . . . . . . . . . High Security . | . . . . . . . . . . Max Security . | . . . . . . . . . . Squads Dispatched 7 | . . . . 2 2 . . . 3 Investigation 1 | . . . . . . . . . 1 Extermination 1 | . . . . . . . . . 1 Reinforcement 4 | . . . . 1 2 . . . 1 Assault . | . . . . . . . . . . Garrison 1 | . . . . 1 . . . . . Intercept . | . . . . . . . . . . Searches Triggered . | . . . . . . . . . . Construction Impeded . | . . . . . . . . . . Haulers Reinforced . | . . . . . . . . . . Active Scanning Responses . | . . . . . . . . . . Cargo Convoy Interrupts . | . . . . . . . . . . Stealth | -11 -10 -10 -9 -9 -8 -7 -6 -5 -4 --------- Run | Scr Mat Min Mat Sto Mat Fac Fac Fac Fac Distress Signals 3 | . . . . 2 . 1 . . . Communications Jammed . | . . . . . . . . . . Distress Signals . | . . . . . . . . . . Times Spotted 76 | . 1 2 . 24 12 12 . 1 24 Peak Tracking Total 18 | . 2 2 . 13 6 5 . 1 18 Tactical Retreats 14 | . 1 . . 5 1 5 . . 2 Traps | -11 -10 -10 -9 -9 -8 -7 -6 -5 -4 ------- Run | Scr Mat Min Mat Sto Mat Fac Fac Fac Fac Traps Triggered 3 | . . . . 1 1 . . . 1 Indirectly . | . . . . . . . . . . Trap Hack Attempts . | . . . . . . . . . . Triggered . | . . . . . . . . . . Disarmed . | . . . . . . . . . . Reprogrammed . | . . . . . . . . . . Reused . | . . . . . . . . . . Traps Extracted . | . . . . . . . . . . Installed . | . . . . . . . . . . Triggered . | . . . . . . . . . . Machines | -11 -10 -10 -9 -9 -8 -7 -6 -5 -4 ---------- Run | Scr Mat Min Mat Sto Mat Fac Fac Fac Fac Machines Disabled . | . . . . . . . . . . Max in Single Turn . | . . . . . . . . . . Machines Sabotaged . | . . . . . . . . . . Garrisons Compromised . | . . . . . . . . . . Overloaded Fab Kills . | . . . . . . . . . . Hacking | -11 -10 -10 -9 -9 -8 -7 -6 -5 -4 --------- Run | Scr Mat Min Mat Sto Mat Fac Fac Fac Fac Machines Accessed 12 | . 1 . . 2 2 1 2 1 3 Terminals 10 | . 1 . . 2 2 1 1 1 2 Fabricators 1 | . . . . . . . 1 . . Repair Stations . | . . . . . . . . . . Recycling Units . | . . . . . . . . . . Scanalyzers 1 | . . . . . . . . . 1 Garrison Access . | . . . . . . . . . . Total Hacks 26 | . 1 . . 4 6 2 3 2 8 Successful 12 | . . . . . 5 1 2 1 3 Failed 14 | . 1 . . 4 1 1 1 1 5 Catastrophic 3 | . 1 . . 2 . . . . . Database Lockouts . | . . . . . . . . . . Manual 18 | . 1 . . 2 5 2 2 2 4 Terminals 21 | . 1 . . 4 6 2 2 2 4 Fabricators 1 | . . . . . . . 1 . . Repair Stations . | . . . . . . . . . . Recycling Units . | . . . . . . . . . . Scanalyzers 4 | . . . . . . . . . 4 Garrison Access . | . . . . . . . . . . Terminal Hacks 4 | . . . . . 3 . 1 . . Terminal Index 2 | . . . . . 1 . 1 . . Zone Layout 2 | . . . . . 2 . . . . Fabricator Hacks 1 | . . . . . . . 1 . . Build 1 | . . . . . . . 1 . . Repair Station Hacks . | . . . . . . . . . . Recycling Unit Hacks . | . . . . . . . . . . Scanalyzer 3 | . . . . . . . . . 3 Insert Component 2 | . . . . . . . . . 2 Analyze 1 | . . . . . . . . . 1 Garrison Access Hacks . | . . . . . . . . . . Unauthorized Hacks 4 | . . . . . 2 1 . 1 . Terminals 4 | . . . . . 2 1 . 1 . Track 1 | . . . . . 1 . . . . Assimilate 1 | . . . . . . . . 1 . Botnet 2 | . . . . . 1 1 . . . Fabricators . | . . . . . . . . . . Repair Stations . | . . . . . . . . . . Recycling Units . | . . . . . . . . . . Scanalyzers . | . . . . . . . . . . Garrison Access . | . . . . . . . . . . Data Cores Recovered . | . . . . . . . . . . Used . | . . . . . . . . . . Hacking Detections 12 | . 1 . . 2 2 1 2 1 3 Full Trace Events 1 | . . . . . 1 . . . . Feedback Events . | . . . . . . . . . . Feedback Blocked . | . . . . . . . . . . Robot Schematics Acquired . | . . . . . . . . . . Robots Built . | . . . . . . . . . . Authchips . | . . . . . . . . . . Time . | . . . . . . . . . . Total Robot Build Rating . | . . . . . . . . . . Part Schematics Acquired 1 | . . . . . . . . . 1 Parts Built 1 | . . . . . . . 1 . . Authchips . | . . . . . . . . . . Time 58 | . . . . . . . 58 . . Total Part Build Rating 7 | . . . . . . . 7 . . Parts Repaired . | . . . . . . . . . . Time . | . . . . . . . . . . Parts Recycled . | . . . . . . . . . . Recycled Matter . | . . . . . . . . . . Retrieved Matter . | . . . . . . . . . . Retrieved Components . | . . . . . . . . . . Parts Scanalyzed 2 | . . . . . . . . . 2 Part Schematics Acquired 1 | . . . . . . . . . 1 Parts Damaged 1 | . . . . . . . . . 1 Bothacking | -11 -10 -10 -9 -9 -8 -7 -6 -5 -4 ------------ Run | Scr Mat Min Mat Sto Mat Fac Fac Fac Fac Used RIF Installer . | . . . . . . . . . . Robots Hacked . | . . . . . . . . . . Non-combat . | . . . . . . . . . . Combat . | . . . . . . . . . . Robot Hacks Applied . | . . . . . . . . . . Relay Couplers Released . | . . . . . . . . . . Fabnet Peak Effective % . | . . . . . . . . . . Robots Rewired . | . . . . . . . . . . Allies Hacked . | . . . . . . . . . . Hacks Repelled . | . . . . . . . . . . Allies | -11 -10 -10 -9 -9 -8 -7 -6 -5 -4 -------- Run | Scr Mat Min Mat Sto Mat Fac Fac Fac Fac Total Allies 1 | . . . . . . . . 1 . Largest Group 1 | . . . . . . . . 1 1 Highest-Rated Group 26 | . . . . . . . . 26 26 Highest-Rated Ally 26 | . . . . . . . . 26 26 Total Orders . | . . . . . . . . . . Ally Attacks . | . . . . . . . . . . Total Damage . | . . . . . . . . . . Kills . | . . . . . . . . . . Allies Corrupted . | . . . . . . . . . . Allies Melted . | . . . . . . . . . . Intel | -11 -10 -10 -9 -9 -8 -7 -6 -5 -4 ------- Run | Scr Mat Min Mat Sto Mat Fac Fac Fac Fac Robot Analysis Total . | . . . . . . . . . . Derelict Logs Recovered . | . . . . . . . . . . Drone Launches . | . . . . . . . . . . Drone Recoveries . | . . . . . . . . . . Exploration | -11 -10 -10 -9 -9 -8 -7 -6 -5 -4 ------------- Run | Scr Mat Min Mat Sto Mat Fac Fac Fac Fac Turns Passed 1830 | 133 54 51 9 239 144 410 181 73 536 Spaces Moved 2647 | 85 101 42 17 322 270 679 250 130 751 Core 261 | 17 101 42 17 76 . . . . 8 Treads 69 | 68 . . . 1 . . . . . Legs 16 | . . . . . . 16 . . . Wheels . | . . . . . . . . . . Hover 1977 | . . . . . 191 663 250 130 743 Flight 324 | . . . . 245 79 . . . . Fastest Speed 30 | 50 50 50 50 40 30 42 40 40 35 Average Speed 50 | 138 50 50 50 58 40 47 44 40 47 Slowest Speed 160 | 160 50 50 50 160 50 130 46 40 150 Overloaded Moves 19 | . . . . . 19 . . . . Propulsion Burnouts . | . . . . . . . . . . Robots Hopped 7 | . . . . 6 1 . . . . Cave-ins Triggered . | . . . . . . . . . . Exploration Rate (%) 21 | 5 26 15 3 75 34 24 10 5 20 Regions Visited 9 Branch Regions 2 Pre-discovered Areas . | . . . . . . . . . . Known Exits Taken 4 | . . . . . 1 1 1 1 . Unknown Exits Taken 5 | 1 1 1 1 1 . . . . . Scrap Searched . | . . . . . . . . . . Spaces Dug 10 | . . . . . . 1 . . 9 Terrain Destroyed 23 | . . . . . . 1 . . 22 Melee 10 | . . . . . . 1 . . 9 Projectile . | . . . . . . . . . . AOE 13 | . . . . . . . . . 13 Terrain Rammed . | . . . . . . . . . . Walls Destroyed . | . . . . . . . . . . Machines Disabled . | . . . . . . . . . . Actions | -11 -10 -10 -9 -9 -8 -7 -6 -5 -4 --------- Run | Scr Mat Min Mat Sto Mat Fac Fac Fac Fac Total 3015 | 99 105 62 16 342 298 738 321 150 884 Wait 192 | 3 . 7 . 3 9 7 59 19 85 Move 2625 | 84 100 41 16 310 267 678 249 129 751 Hop 6 | . . . . 5 1 . . . . Pick Up 32 | 7 2 2 . 2 3 10 1 1 4 Fast Attach 42 | 3 . . . 3 11 13 5 . 7 Attach 15 | 2 . . . 3 2 4 . 1 3 Detach 1 | . . . . . 1 . . . . Swap 6 | . . . . . . . 1 . 5 Drop 32 | . 3 2 . 1 3 11 6 . 6 Fire 23 | . . 6 . 15 . . . . 2 Melee 35 | . . . . . . 14 . . 21 Ram 6 | . . 4 . . 1 1 . . . Kick . | . . . . . . . . . . Crush . | . . . . . . . . . . Escape Stasis . | . . . . . . . . . . Rewire . | . . . . . . . . . . Trap . | . . . . . . . . . . Miscellaneous . | . . . . . . . . . . Route ------- -11/Scrapyard -10/Materials -10/Mines -9/Materials -9/Storage -8/Materials -7/Factory -6/Factory -5/Factory -4/Factory History --------- Turn | Location | Event 3 | -11/Scrapyard | Discovered new exit (range 15) 134 | -11/Scrapyard | Entered Materials 174 | -10/Materials | Discovered new exit (range 15) 188 | -10/Materials | Entered Mines 233 | -10/Mines | Discovered new exit (range 12) 239 | -10/Mines | Entered Materials 239 | -9/Materials | Evolved 2 slots: Propulsion x2 239 | -9/Materials | Discovered new exit (range 7) 248 | -9/Materials | Entered Storage 284 | -9/Storage | Garrison activated, responded to threat 319 | -9/Storage | Build established: Mutant 480 | -9/Storage | Core integrity fell below 50% 481 | -9/Storage | Discovered new exit (range 16) 487 | -9/Storage | Entered Materials 487 | -8/Materials | Evolved 2 slots: Utility x2 491 | -8/Materials | Lost 6 parts (4n2w) 627 | -8/Materials | Discovered new exit (range 9) 630 | -8/Materials | Identified exit to Factory 631 | -8/Materials | Entered Factory 631 | -7/Factory | Evolved 2 slots: Utility x2 742 | -7/Factory | Lost 5 parts (1p3n1u) 888 | -7/Factory | Found Prototype Launcher 888 | -7/Factory | Identified Rocket Array 1023 | -7/Factory | Discovered new exit (range 18) 1037 | -7/Factory | Identified exit to Factory 1041 | -7/Factory | Entered another Factory area 1041 | -6/Factory | Evolved 2 slots: Propulsion x2 1131 | -6/Factory | Discovered new exit (range 9) 1161 | -6/Factory | Build established: Scout 1203 | -6/Factory | Fabricated Lrn. Sensor Array (x1) 1213 | -6/Factory | Identified exit to Factory 1222 | -6/Factory | Entered another Factory area 1222 | -5/Factory | Evolved 2 slots: Power x1, Utility x1 1243 | -5/Factory | Discovered new exit (range 15) 1256 | -5/Factory | Identified exit to Factory 1295 | -5/Factory | Entered another Factory area 1295 | -4/Factory | Accompanied by 1 ally 1295 | -4/Factory | Evolved 2 slots: Utility x2 1380 | -4/Factory | P-70 Sage assimilated allied Administrator 6a 1670 | -4/Factory | Build established: Scavenger-Ninja 1734 | -4/Factory | Spotted B-86 Titan 1804 | -4/Factory | Core integrity fell below 50% 1820 | -4/Factory | Core integrity fell below 20% 1831 | -4/Factory | Destroyed by C-35 Carver with Carbide Saw Last Messages --------------- 01809_ K-01 Serf collects debris. 01809_ Acquired Linear Gravjet. 01810_ Fusion Compressor destroyed. 01810_ Antimatter Reactor destroyed. 01811_ Acquired Linear Gravjet. 01812_ Lrn. Sensor Array destroyed. 01812_ K-01 Serf collects debris. 01812_ S-27 Virus destroyed. 01813_ Acquired Linear Gravjet. 01814_ The unstable cave ceiling collapses. 01814_ S-27 Virus destroyed. 01816_ Linear Gravjet destroyed. 01816_ K-01 Serf collects debris. 01819_ Linear Gravjet destroyed. 01820_ K-01 Serf collects debris. 01821_ Linear Gravjet severed. 01824_ K-01 Serf collects debris. 01825_ Imp. Gyrokinetic Inverter severed. 01825_ Adv. Visual Processing Unit severed. 01826_ Q8PD>BAH=CNHO R3WI7QJMEJ4PNZ Map ----- +----------------------------------------------------+ | ?????????????????????????????????????????????????? | | ?????????????????????????????????????????????????? | | ?????????????????????????????????????????????????? | | ?????????????????????????????????????????????????? | | ?????????????????????????????????????????????????? | | ?????????????????????????????????????????????????? | | ?????????????????????????????????????????????????? | | ?????????????????????????????????????????????????? | | ???########??????????????????????????????????????? | | ???# ??????????????????????????????????????? | | ???# ??????????????????????????????????????? | | ???#! ""??????????????????????????????????????? | | ???# "???????????????????????????????????????? | | ???# "???????????????????????????????????????? | | ???# "???????????????????????????????????????? | | ???# ????????????????????????????????????????? | | ????? ????####????????????????????????????????? | | #######/######T #####+######+########????????????? | | ???????????? | | ???????????? | | ??????????? | | * * ??????????? | | = = ??????????? | | # ############/###### #???????????????????? | | %* #?# c #??????????????????????? | | # % == #?# """@#??????????????????????? | | # %= #?# """ "Y" #??????????????????????? | | # #?# """ " " #??????????????????????? | | ## ! #?# """ +??????????????????????? | | ?# #?# #??????????????????????? | | ?# #?#! #??????????????????????? | | ?# #?? #??????????????????????? | | ?# #?###########??????????????????????? | | ?# * ! #??????????????????????????????????? | | ?# ] ! #??????????????????????????????????? | | ?# !! #??????????????????????????????????? | | ?##############??????????????????????????????????? | | ?????????????????????????????????????????????????? | | ?????????????????????????????????????????????????? | | ?????????????????????????????????????????????????? | | ?????????????????????????????????????????????????? | | ?????????????????????????????????????????????????? | | ?????????????????????????????????????????????????? | | ?????????????????????????????????????????????????? | | #####????????????????????????????????????????????? | | ###??????????????????????????????????????????? | | """#??????????????????????????????????????????? | | "#??????????????????????????????????????????? | | " #?????????????????????????????????????????? | | " #?????????????????????????????????????????? | +----------------------------------------------------+ Best States ------------- Heat Dissipation 43 Energy Generation 30 Energy Capacity 325 Matter Stores 300 Matter Capacity 300 Sight Range 20 Robot Scan Range 18 Terrain Scan Density 10 Jamming Range 14 Core Shielding 20 Utility Shielding 66 Evasion (%) 68 Melee Accuracy 12 Recoil Reduction 2 Offensive Hacking 10 Authchip Count 2 Item Schematics ----------------- Lrn. Sensor Array | -4/Factory | Scanalyzed Robot Schematics ------------------ None Fabricated ------------ Lrn. Sensor Array | x1 | -6/Factory | Preloaded Alien Tech Used ----------------- None Achievements -------------- None Challenges ------------ None Game ------ Seed IntegrityClaymoresLauncher Manual? 0 Play Time 00:44:31 Cumulative 68.3 hours Start 2022.07.13 @ 18:35:03 End 2022.07.13 @ 20:27:05 Sessions 1 Manual Loads 0 Difficulty Rogue Special Mode None Game No. 56 Rogue 56 Adventurer 0 Explorer 0 Win Type - Total 0 Types 0/0/0/0/0/0/0/0/0 Lore% 45 Gallery% 56 Achievement% 48 Wizard Run 0 Options --------- ASCII 0 Keyboard 0 Movement Numpad Keybinds 0 Fullscreen 1 Font 36/Smallcaps Map View 76x50 Tactical HUD 1 Map Filters NONE Filters NONE Steam 1 RUN: cecb5dcf-d130-428b-b0bf-e6a645eb6b7e